Cogmind - Beta 17 @@@ ROGUE MODE // 2026.06.26 @ 17:31:25 Player: Brananarchy Result: Destroyed by Y-45 Defender with Beam Rifle Performance ------------- Evolutions (1) 500 Regions Visited (3) 600 Robots Destroyed (13) 65 Value Destroyed (308) 308 Prototype IDs (0) 0 Alien Tech Used (0) 0 Bonus (370) 370 TOTAL SCORE: 1843 Bonus ------- Follower Combat Kills 385 Friendly Fire -15 Cogmind --------- Core Integrity 0/400 Matter 300/300 Energy 100/100 System Corruption 4% Temperature Cool (82) Movement Core (100) Ox1 Location -9/Storage Parts ------- > --- POWER (1) -------- (None) > --- PROPULSION (2) --- (None) > --- UTILITY (3) ------ Small Storage Unit Structural Scanner Terrain Scan Processor > --- WEAPON (3) ------- (None) > --- INVENTORY (8) ---- Light Ion Engine Improved Ion Engine Heavy Ion Engine Heavy Ion Engine Heavy Ion Engine Aluminum Leg Aluminum Leg Improved Aluminum Leg Peak State ------------ > --- POWER ------------ Light Nuclear Core > --- PROPULSION ------- Aluminum Leg Carbon-fiber Leg > --- UTILITY ---------- Small Storage Unit Structural Scanner > --- WEAPON ----------- Light Assault Rifle Light Assault Rifle Light Assault Rifle > --- INVENTORY -------- Light Ion Engine Improved Ion Engine Heavy Ion Engine Heavy Ion Engine Heavy Ion Engine Aluminum Leg Aluminum Leg Improved Aluminum Leg [Rating: 13] Favorites ----------- Power Light Ion Engine Engine Light Ion Engine Power Core Light Nuclear Core Propulsion Aluminum Leg Leg Aluminum Leg Utility Small Storage Unit Device Sensor Array Storage Small Storage Unit Processor Terrain Scan Processor Weapon Assault Rifle Ballistic Gun Assault Rifle Build | -11 -10 -9 -9 ------- Run | Yrd Mat Mat Sto Slots Evolved 2 | . . 2 . Power . | . . . . Propulsion . | . . . . Utility 1 | . . 1 . Weapon 1 | . . 1 . Parts Attached 18 | 6 1 1 10 Power 4 | 1 . . 3 Engine 3 | 1 . . 2 Core 1 | . . . 1 Reactor . | . . . . Propulsion 5 | 2 . . 3 Treads . | . . . . Leg 5 | 2 . . 3 Wheel . | . . . . Hover . | . . . . Flight . | . . . . Utility 4 | 1 1 . 2 Device 2 | . 1 . 1 Storage 1 | 1 . . . Processor 1 | . . . 1 Hackware . | . . . . Protection . | . . . . Artifact . | . . . . Weapon 5 | 2 . 1 2 Energy Gun . | . . . . Energy Cannon . | . . . . Ballistic Gun 5 | 2 . 1 2 Ballistic Cannon . | . . . . Launcher . | . . . . Special Weapon . | . . . . Impact Weapon . | . . . . Slashing Weapon . | . . . . Piercing Weapon . | . . . . Special Melee Weapon . | . . . . Unidentified Prototypes . | . . . . Parts Lost 11 | . . . 11 Power 2 | . . . 2 Propulsion 3 | . . . 3 Utility 1 | . . . 1 Weapon 5 | . . . 5 Highest Loss Streak 6 | . . . 6 To Critical Strikes . | . . . . Average Backups 4 | 2 2 2 6 Power 2 | 1 1 1 3 Propulsion 1 | . . 1 2 Utility . | . . . . Weapon . | 1 1 . . Tool/Special . | . . . . Unused Backups 4 | . . . 4 Power 3 | . . . 3 Propulsion 1 | . . . 1 Utility . | . . . . Weapon . | . . . . Tool/Special . | . . . . Average Slot Usage (%) 80 | . 96 88 69 Engine 9 | . 14 11 6 Leg 20 | . 28 22 16 Device 9 | . 10 11 7 Storage 11 | . 14 11 11 Processor 1 | . . . 3 Ballistic Gun 26 | . 28 33 24 Peak Build Rating 13 | 6 7 8 13 Average Rating 7 | 4 6 8 8 On Entrance 5 | . 6 7 8 Avg Prop Armor Cover (%) . | . . . . Naked Turns . | . . . . Heaviest Build 15 | 12 13 14 15 Greatest Support 25 | 20 20 20 25 Greatest Overweight (x) 1 | . . . 1 Average Overweight (x) . | . . . . Largest Inventory Capacity 8 | 8 8 8 8 Average Capacity 7 | 7 8 8 8 Most Carried 8 | 5 3 4 8 Average Carried 4 | 2 2 2 6 Final Capacity 8 | 8 8 8 8 Final Carried 8 | 2 3 4 8 Class Distribution -------------------- 51% | Mutant 28% | Skirmisher 19% | Scavenger-Gunner Dominant Class ---------------- Mutant | -10/Materials Skirmisher | -9/Materials Scavenger-Gunner | -9/Storage Resources | -11 -10 -9 -9 ----------- Run | Yrd Mat Mat Sto Matter Collected 620 | 257 109 57 197 Remotely . | . . . . Salvage Created 409 | . 167 66 176 Parts 27 | . 10 8 9 Haulers Intercepted . | . . . . Recyclers Shooed 2 | . 2 . . Parts Field Recycled . | . . . . Retrieved Matter . | . . . . Parts Self-Destructed . | . . . . Prevented . | . . . . Parts Restored . | . . . . Kills | -11 -10 -9 -9 ------- Run | Yrd Mat Mat Sto Combat Hostiles Destroyed 10 | . 2 4 4 Guns 10 | . 2 4 4 Classes Destroyed 5 | . 3 1 1 Recycler 1 | . 1 . . Watcher 2 | . 1 1 . Swarmer 4 | . . 4 . Grunt 5 | . 2 . 3 Duelist 1 | . . . 1 Best Kill Streak 5 | . 4 5 1 Combat Bots Only 4 | . 2 4 1 Max Kills in Single Turn 2 | . 1 2 1 Gunslinging 1 | . . 1 . Exploded . | . . . . Melee . | . . . . Uniques/NPCs Destroyed . | . . . . Combat | -11 -10 -9 -9 -------- Run | Yrd Mat Mat Sto Hostile Shots Fired 140 | . 20 8 112 Missed 41 | . 5 5 31 Hits 99 | . 15 3 81 Melee 5 | . . . 5 Projectile 94 | . 15 3 76 Critical Strikes 7 | . 1 1 5 Damage Taken 1515 | . 207 28 1280 Core 431 | . 24 . 407 Absorbed by Shields . | . . . . Core Remaining (%) 95 | 100 90 . . Volleys Fired 60 | . 18 5 37 Largest 3 | . 2 3 3 Hottest 60 | . 40 60 60 Shots Fired 146 | . 36 15 95 Gun 146 | . 36 15 95 Cannon . | . . . . Launcher . | . . . . Special . | . . . . Kinetic 146 | . 36 15 95 Thermal . | . . . . Explosive . | . . . . Electromagnetic . | . . . . Robot Hit Streak 8 | . 5 5 8 Robot Miss Streak 7 | . 4 7 4 Penetration Max . | . . . . Secondary Targets 6 | . 1 3 2 Max Gunslinging Chain 1 | . 1 1 1 Shots Hit Robots 78 | . 17 8 53 Core Hits 38 | . 8 6 24 Critical Kills . | . . . . Critical Parts Destroyed . | . . . . Critical Strikes . | . . . . Melee Attacks . | . . . . Impact . | . . . . Slashing . | . . . . Piercing . | . . . . Sneak Attacks . | . . . . Combat Hostiles . | . . . . Follow-up Attacks . | . . . . Damage Inflicted 934 | . 236 103 595 Guns 915 | . 236 103 576 Cannons . | . . . . Explosions . | . . . . Melee . | . . . . Ramming 19 | . . . 19 Kinetic 915 | . 236 103 576 Thermal . | . . . . Explosive . | . . . . Electromagnetic . | . . . . Impact . | . . . . Slashing . | . . . . Piercing . | . . . . Highest Corruption 4 | . . 2 4 Average Corruption 2 | . . 2 2 Corruption Purged . | . . . . Corruption Blocked . | . . . . Effects 5 | . . . 5 Message Errors 2 | . . . 2 Heat Flow Errors 1 | . . . 1 Data Loss (minor) 1 | . . . 1 Weapon Failures 1 | . . . 1 Overload Shots . | . . . . Overflow Damage . | . . . . Projectiles . | . . . . Explosions . | . . . . Melee . | . . . . Knockbacks . | . . . . Impact . | . . . . Kinetic . | . . . . Secondary . | . . . . Self-Inflicted Damage 8 | . . . 8 Shots . | . . . . Rammed 6 | . . . 6 Targets Rammed 6 | . . . 6 Kicked . | . . . . Crushed . | . . . . Highest Temperature 148 | . 21 . 148 Average Temperature 27 | . 9 . 32 Received Heat Transfer 570 | . 138 . 432 Siege Activations . | . . . . Martial Activations . | . . . . Shielding Activations . | . . . . Robots Disrupted . | . . . . Combat Hostiles . | . . . . Robots Corrupted . | . . . . Combat Hostiles . | . . . . Parts Fried . | . . . . Impact Corruptions . | . . . . Robots Melted . | . . . . Combat Hostiles . | . . . . Parts Melted . | . . . . Heat Transferred . | . . . . Parts Sabotaged . | . . . . Parts Stolen . | . . . . Parts Stripped . | . . . . Power Chain Reactions . | . . . . Alert | -11 -10 -9 -9 ------- Run | Yrd Mat Mat Sto Maximum Alert Level 1 | . . . 1 Low Security (%) 79 | 100 100 100 59 Level 1 20 | . . . 40 Level 2 . | . . . . Level 3 . | . . . . Level 4 . | . . . . Level 5 . | . . . . High Security . | . . . . Max Security . | . . . . Peak Influence 302 | . 47 97 302 Initial 32 | . . 4 32 Average 91 | . 17 34 161 Influence Increases 624 | . 62 97 465 Destroy 0b10 Robot/C 460 | . 40 80 340 Destroy 0b10 Robot/NC 20 | . 10 5 5 Destroy Leader 74 | . 12 12 50 Allied During Kill 55 | . . . 55 Lose Combat Pursuer 15 | . . . 15 Influence Decreases 437 | . 50 32 355 Entered New Map 53 | . . 8 45 Time Decay 234 | . 50 24 160 Lost Part 110 | . . . 110 Lost Ally 40 | . . . 40 Squads Dispatched 4 | . . . 4 Investigation 1 | . . . 1 Extermination . | . . . . Reinforcement 1 | . . . 1 Assault 2 | . . . 2 Garrison . | . . . . Intercept . | . . . . Searches Triggered . | . . . . Construction Impeded . | . . . . Haulers Reinforced . | . . . . Active Scanning Responses . | . . . . Cargo Convoy Interrupts . | . . . . Stealth | -11 -10 -9 -9 --------- Run | Yrd Mat Mat Sto Distress Signals 2 | . 1 1 . Communications Jammed . | . . . . Distress Signals . | . . . . Times Spotted 41 | . 5 6 30 Peak Tracking Total 9 | . 5 4 9 Tactical Retreats 1 | . . . 1 Traps | -11 -10 -9 -9 ------- Run | Yrd Mat Mat Sto Traps Triggered 1 | . . 1 . Indirectly . | . . . . Trap Hack Attempts . | . . . . Triggered . | . . . . Disarmed . | . . . . Reprogrammed . | . . . . Reused . | . . . . Traps Extracted . | . . . . Installed . | . . . . Triggered . | . . . . Machines | -11 -10 -9 -9 ---------- Run | Yrd Mat Mat Sto Machines Disabled . | . . . . Max in Single Turn . | . . . . Machines Repaired . | . . . . Machines Dismantled . | . . . . Machines Sabotaged . | . . . . Overloaded Fab Kills . | . . . . Hacking | -11 -10 -9 -9 --------- Run | Yrd Mat Mat Sto Machines Accessed . | . . . . Terminals . | . . . . Fabricators . | . . . . Repair Stations . | . . . . Recycling Units . | . . . . Scanalyzers . | . . . . Garrison Access . | . . . . Total Hacks . | . . . . Successful . | . . . . Failed . | . . . . Catastrophic . | . . . . Database Lockouts . | . . . . Manual . | . . . . Terminals . | . . . . Fabricators . | . . . . Repair Stations . | . . . . Recycling Units . | . . . . Scanalyzers . | . . . . Garrison Access . | . . . . Terminal Hacks . | . . . . Fabricator Hacks . | . . . . Repair Station Hacks . | . . . . Recycling Unit Hacks . | . . . . Scanalyzer . | . . . . Garrison Access Hacks . | . . . . Unauthorized Hacks . | . . . . Terminals . | . . . . Fabricators . | . . . . Repair Stations . | . . . . Recycling Units . | . . . . Scanalyzers . | . . . . Garrison Access . | . . . . Data Cores Recovered . | . . . . Used . | . . . . Hacking Detections . | . . . . Full Trace Events . | . . . . Feedback Events . | . . . . Feedback Blocked . | . . . . Robot Schematics Acquired . | . . . . Robots Built . | . . . . Authchips . | . . . . Time . | . . . . Total Robot Build Rating . | . . . . Part Schematics Acquired . | . . . . Parts Built . | . . . . Authchips . | . . . . Time . | . . . . Total Part Build Rating . | . . . . Part Studies Acquired . | . . . . Parts Repaired . | . . . . Time . | . . . . Parts Recycled . | . . . . Recycled Matter . | . . . . Retrieved Matter . | . . . . Retrieved Components . | . . . . Parts Scanalyzed . | . . . . Part Schematics Acquired . | . . . . Parts Damaged . | . . . . Bothacking | -11 -10 -9 -9 ------------ Run | Yrd Mat Mat Sto Used RIF Installer . | . . . . Robots Hacked . | . . . . Non-combat . | . . . . Combat . | . . . . Robot Hacks Applied . | . . . . Relay Couplers Released . | . . . . Fabnet Peak Effective % . | . . . . Robots Rewired . | . . . . Allies Hacked . | . . . . Hacks Repelled . | . . . . Allies | -11 -10 -9 -9 -------- Run | Yrd Mat Mat Sto Total Allies 2 | . . . 2 Largest Group 2 | . . . 2 Highest-Rated Group 62 | . . . 62 Highest-Rated Ally 31 | . . . 31 Total Orders . | . . . . Ally Attacks 59 | . . . 59 Total Damage 991 | . . . 991 Kills 14 | . . . 14 Allies Corrupted . | . . . . Allies Melted . | . . . . Intel | -11 -10 -9 -9 ------- Run | Yrd Mat Mat Sto Active Infowar (turns) 433 | . 124 92 217 Sensors 327 | . 124 92 111 Structural 106 | . . . 106 Robot Analysis Total . | . . . . Derelict Logs Recovered . | . . . . Drone Launches . | . . . . Drone Recoveries . | . . . . Exploration | -11 -10 -9 -9 ------------- Run | Yrd Mat Mat Sto Turns Passed 632 | 58 161 92 321 Spaces Moved 363 | 42 87 62 172 Core 69 | 7 . . 62 Treads . | . . . . Legs 294 | 35 87 62 110 Wheels . | . . . . Hover . | . . . . Flight . | . . . . Fastest Speed 50 | 50 120 120 100 Average Speed 115 | 108 120 120 112 Slowest Speed 120 | 120 120 120 120 Overloaded Moves . | . . . . Propulsion Burnouts . | . . . . Robots Hopped . | . . . . Potential Cave-ins . | . . . . Cave-ins Triggered . | . . . . Exploration Rate (%) 19 | 3 29 11 33 Regions Visited 3 Branch Regions 1 Pre-discovered Areas . | . . . . Known Exits Taken . | . . . . Unknown Exits Taken 3 | 1 1 1 . Scrap Searched . | . . . . Spaces Dug . | . . . . Terrain Destroyed . | . . . . Melee . | . . . . Projectile . | . . . . AOE . | . . . . Terrain Rammed . | . . . . Walls Destroyed . | . . . . Machines Disabled . | . . . . Actions | -11 -10 -9 -9 --------- Run | Yrd Mat Mat Sto Total 463 | 54 107 69 233 Wait . | . . . . Move 360 | 41 86 61 172 Hop . | . . . . Pick Up 19 | 7 2 2 8 Fast Attach 3 | 1 . . 2 Attach 11 | 5 1 1 4 Detach . | . . . . Swap 4 | . . . 4 Drop . | . . . . Fire 60 | . 18 5 37 Melee . | . . . . Ram 6 | . . . 6 Kick . | . . . . Crush . | . . . . Escape Stasis . | . . . . Rewire . | . . . . Trap . | . . . . Miscellaneous . | . . . . Route ------- -11/Scrapyard -10/Materials -9/Materials -9/Storage History --------- Turn | Location | Event 16 | -11/Scrapyard | Discovered new exit (range 15) 59 | -11/Scrapyard | Entered Materials 199 | -10/Materials | Discovered new exit (range 10) 220 | -10/Materials | Entered another Materials area 220 | -9/Materials | Evolved 2 slots: Utility x1, Weapon x1 300 | -9/Materials | Discovered new exit (range 5) 312 | -9/Materials | Entered Storage 341 | -9/Storage | Met a pair of Derelict thieves 459 | -9/Storage | Lost 5 parts (1p1n1u2w) 565 | -9/Storage | Core integrity fell below 50% 595 | -9/Storage | Lost 6 parts (1p2n3w) 630 | -9/Storage | Core integrity fell below 20% 633 | -9/Storage | Destroyed by Y-45 Defender with Beam Rifle Last Messages --------------- 00564_ U-05 Engineer builds a Door. 00567_ R-06 Scavenger collects Prototype Flight Unit. 00578_ R-06 Scavenger collects Aluminum Leg. 00582_ K-01 Serf collects debris. 00584_ Slammed into U-05 Engineer. 00589_ R-06 Scavenger collects Imp. Heat Sink. 00628_ Slammed into S-10 Pest. 00628_ Destabilizing: System corrupted (+2). 00629_ System corrupted: Heat flow error (+176). 00629_ Slammed into S-10 Pest. 00630_ Destabilizing: System interference. 00630_ Terrain Scan Processor temporarily disabled. 00631_ Slammed into S-10 Pest. 00631_ Destabilizing: System interference. 00631_ Structural Scanner temporarily disabled. 00632_ Slammed into S-10 Pest. 00632_ Destabilizing: Core damaged (-20). Map ----- +----------------------------------------------------+ | | | | | | | ?????????????????????????????????????????????????? | | ?????????????????????????????????????????????????? | | ?????????????????????????????????????????????????? | | ?????????????????????????????????????????????????? | | ?????????????????????????????????????????????????? | | ?????????????????????????????????????????????????? | | ????????????????????###??????????????????????????? | | ????????????????????## ??????????????????????????? | | ????????????????????## ??????????????????????????? | | ????????????????????## "?????????????????????????? | | ????????????????????## "?????????????????????????? | | ???????????????????? # "?????????????????????????? | | ????????????????? # ?????????????????????????? | | ?????????????????## # ?????????????????????????? | | ?????????????????## # ???????????????????? | | ???????????????????? ##+######???????????????????? | | ???????????????????? ???????????????????? | | ?????????????????????? ?????????????????????? | | ??????????????????????## ########## ?????????? | | ????????????????? ######s ###############????????? | | ????????????????? ###### sY ! ###????????? | | ????????????????? + w%# ##????????? | | ????????????????? ######%@# ###????????? | | ????????????????? ###### s# """ """ ###????????? | | ??????????????????????## # """ """ ##?????????? | | ??????????????????????## # """ """ ! ##?????????? | | ??????????????????????##Y # ##?????????? | | ???????????????????#####Y ##########+###?????????? | | ???????????????????#####Y########### ###?????????? | | ???????????????????## ##???## ##??????????? | | ??????????????????### ##???## ##??????????? | | ??????????????????### ####### ##??????????? | | ??????????????????## """ ####### ##??????????? | | ??????????????????### """ + ##??????????? | | ???????????????????## """ ##########??????????? | | ???????????????????## """ ##########??????????? | | ???????????????????## """ ##??????????????????? | | ???????????????????## ##??????????????????? | | ???????????????????#########+##??????????????????? | | ???????????????????## ###### ##??????????????????? | | ???????????????????##!! ## ##??????????????????? | | ???????????????????##!! !## ############????????? | | ???????????##########!! ## ########### ??????? | | ???????????# # # % ?????? | | ???????????# # # % % % ?????? | | ???????????# """" # / % ?????? | | ???????????# ""??" # """ # %%#####+#### ??????? | +----------------------------------------------------+ Best States ------------- Heat Dissipation 28 Energy Generation 14 Energy Capacity 265 Matter Stores 300 Matter Capacity 300 Sight Range 16 Robot Scan Range 14 Terrain Scan Density 85 Evasion (%) 55 Item Schematics ----------------- None Robot Schematics ------------------ None Fabricated ------------ Nothing Repaired ---------- Nothing Studied --------- None Alien Tech Used ----------------- None Achievements -------------- None Challenges ------------ None Game ------ Seed JunkPrecisionFocus Manual? 0 Play Time 00:12:27 Cumulative 5.9 hours Start 2026.06.26 @ 17:21:36 End 2026.06.26 @ 17:31:25 Sessions 1 Manual Loads 0 Difficulty Rogue Special Mode None Game No. 15 Rogue 15 Adventurer 0 Explorer 0 Win Type - Total 0 Types 0/0/0/0/0/0/0/0/0/0 Lore% 6 Gallery% 9 Achievement% 11 Wizard Run 0 Options --------- Layout 1 ASCII 0 Keyboard 0 Movement Mouse Keybinds 0 Fullscreen 1 Font 32/SmallcapsGlow Map View 50x35 Zoom Use 0% Tactical HUD 1 Map Filters NONE Filters NONE Steam 1 RUN: 56992e59-529b-4cee-8f66-6e13a3ee1e41